bitfinex-derivatives/quotes_SOLF0:USTF0_20241120
["timestamp","ask_amount","ask_price","bid_price","bid_amount"]
[1732113540101,29.77160707,240.28,240.08,25.96050707]
[1732113540497,2.0795,240.21,240.13,2.0801]
[1732113540696,29.77160707,240.28,240.08,25.96050707]
[1732113540996,3.8111,240.28,240.12,25.96050707]
[1732113541390,29.77160707,240.28,240.08,25.96050707]
[1732113541590,2.0795,240.21,240.12,2.0802]
[1732113541894,3.8111,240.28,240.1,15.9697628]
[1732113542091,2.079,240.27,240.19,2.0797]
[1732113542292,3.8111,240.28,240.08,4.34]
[1732113542497,15.9697628,240.22,240.02,0.29649]
[1732113542696,15.9697628,240.18,240.02,0.29649]
[1732113542897,2.0802,240.14,240.02,0.29649]
[1732113543195,1.8863,240.17,240.02,0.29649]
[1732113543501,2.0803,240.12,240.02,0.29649]
[1732113543797,3.7044,240.13,240.02,0.29649]
[1732113544001,15.9697628,240.1,240.02,0.29649]
[1732113544299,15.9697628,240.06,239.93,2.0819]
[1732113544528,2.0812,240.01,239.93,2.0819]
[1732113545099,2.0811,240.03,239.94,2.0818]
[1732113545299,2.0811,240.03,239.88,15.9697628]
[1732113545500,15.9697628,240.1,239.88,15.9697628]
[1732113545698,15.9697628,240.05,239.84,15.9697628]
[1732113545901,1.7293,240.04,239.84,15.9697628]
[1732113546902,1.7293,240.04,239.88,15.9697628]
[1732113547202,15.9697628,239.98,239.8,15.9697628]
[1732113547397,4.14,240.03,239.8,15.9697628]
[1732113547398,1.869,239.97,239.8,15.9697628]
[1732113547603,1.869,239.97,239.85,2.0826]
[1732113547900,1.869,239.97,239.76,15.9697628]
[1732113548104,15.9697628,239.94,239.74,4.14]
[1732113548299,1.869,239.97,239.74,4.14]
[1732113548300,15.9697628,239.9,239.75,2.0834]
[1732113548503,1.8228,239.89,239.75,2.0834]
[1732113548698,1.8228,239.89,239.72,15.9697628]
[1732113548905,1.8228,239.89,239.73,0.76534511]
[1732113549099,1.8228,239.89,239.72,15.9697628]
[1732113549604,1.805,239.88,239.72,15.9697628]
[1732113549802,1.805,239.88,239.75,15.9697628]
[1732113550004,1.869,239.97,239.79,15.9697628]
[1732113550197,1.869,239.97,239.64,15.9697628]
[1732113550198,3.674,239.97,239.83,15.9697628]
[1732113550507,3.674,239.97,239.88,2.0823]
[1732113550806,20.1097628,240.06,239.87,15.9697628]
[1732113551100,1.8228,240.09,239.91,15.9697628]
[1732113551101,3.6118,240.08,239.91,15.9697628]
[1732113551301,3.6118,240.08,239.92,4.14]
[1732113551601,15.9697628,240.0,239.76,17.11781711]
[1732113551805,15.9697628,240.0,239.73,51.35345133]
[1732113551806,15.9697628,239.96,239.77,17.88301329]
[1732113552104,2.0823,239.89,239.79,2.0831]
[1732113552302,4.14,239.9,239.73,15.9697628]
[1732113552499,4.14,239.92,239.77,15.9697628]
[1732113552802,20.1097628,239.92,239.69,15.9697628]
[1732113553003,26.03383935,239.88,239.68,26.17603935]
[1732113553202,2.083,239.81,239.64,26.03383935]
[1732113553404,4.14,239.82,239.64,26.03383935]
[1732113553605,26.03383935,239.88,239.64,26.03383935]
[1732113553606,26.03383935,239.88,239.68,26.03383935]
[1732113553799,1.8775,239.91,239.72,26.03383935]
[1732113554000,6.0175,239.91,239.76,26.03383935]
[1732113554508,6.0175,239.91,239.72,26.03383935]
[1732113555101,6.0175,239.91,239.58,19.73479779]
[1732113555102,26.03383935,239.88,239.68,26.03383935]
[1732113555304,26.03383935,239.88,239.58,26.18093935]
[1732113555305,26.03383935,239.8,239.58,26.18093935]
[1732113555503,26.03383935,239.76,239.58,26.03383935]
[1732113555703,5.9598,239.75,239.58,26.03383935]
[1732113556111,3.9033,239.75,239.63,2.0845]
[1732113556305,3.9033,239.75,239.58,26.03383935]
[1732113556306,1.8198,239.75,239.58,26.03383935]
[1732113556604,2.0839,239.71,239.6,2.0847]
[1732113556802,2.0839,239.71,239.54,26.03383935]
[1732113557207,1.8198,239.75,239.6,2.0848]
[1732113557208,2.0837,239.73,239.6,2.0848]
[1732113557409,1.8198,239.75,239.54,26.03383935]
[1732113557913,26.03383935,239.72,239.5,26.03383935]
[1732113558412,26.03383935,239.68,239.46,26.03383935]
[1732113558710,26.03383935,239.6,239.42,26.03383935]
[1732113559007,26.03383935,239.6,239.35,0.1479]
[1732113559008,9.5327,239.59,239.35,0.1479]
[1732113559210,9.5327,239.59,239.42,26.03383935]
[1732113559813,9.5327,239.59,239.46,2.0859]
[1732113560511,2.085,239.58,239.47,2.0859]
[1732113560709,9.5327,239.59,239.38,26.03383935]
[1732113560909,2.0853,239.54,239.42,2.0863]
[1732113561222,26.03383935,239.56,239.38,26.03383935]
[1732113561416,26.03383935,239.56,239.39,0.76654715]
[1732113561616,2.0853,239.54,239.42,2.0863]
[1732113561811,2.0853,239.54,239.43,0.76657754]
[1732113562207,2.0852,239.56,239.44,2.0861]
[1732113562408,5.3927,239.59,239.46,26.03383935]
[1732113562613,5.3927,239.59,239.47,0.76659716]
[1732113562805,5.3927,239.59,239.43,0.76659716]
[1732113563011,5.3927,239.59,239.44,0.76652969]
[1732113563212,5.3927,239.59,239.42,26.03383935]
[1732113563517,5.3927,239.59,239.43,0.76655807]
[1732113563917,5.3927,239.59,239.38,26.03383935]
[1732113564107,26.03383935,239.56,239.39,0.76659567]
[1732113564415,3.94,239.55,239.4,0.76659567]
[1732113564814,26.03383935,239.52,239.4,0.76659567]
[1732113565013,26.03383935,239.52,239.36,2.0868]
[1732113565213,26.03383935,239.52,239.37,0.76670856]
[1732113565420,26.03383935,239.52,239.29,0.76670856]
[1732113565714,2.0861,239.45,239.35,2.0869]
[1732113565912,3.94,239.45,239.36,0.76678362]
[1732113566218,3.94,239.45,239.26,26.03383935]
[1732113566515,26.03383935,239.52,239.3,26.03383935]
[1732113566814,2.086,239.47,239.3,26.03383935]
[1732113567014,26.03383935,239.39,239.2,26.03383935]
[1732113567319,3.6737,239.38,239.23,2.088]
[1732113567516,3.94,239.37,239.2,26.03383935]
[1732113567914,2.0874,239.3,239.16,26.03383935]
[1732113568114,26.03383935,239.35,239.16,26.03383935]
[1732113568419,26.03383935,239.35,239.16,2.0886]
[1732113568615,26.03383935,239.35,239.12,26.03383935]
[1732113568921,3.94,239.37,239.12,26.03383935]
[1732113568922,26.03383935,239.31,239.12,26.03383935]
[1732113569218,1.7552,239.3,239.12,26.03383935]
[1732113569815,3.8426,239.3,239.12,26.03383935]
[1732113570124,3.94,239.31,239.16,26.03383935]
[1732113570516,26.03383935,239.25,238.92,26.03383935]
[1732113570813,26.03383935,239.21,239.02,26.03383935]
[1732113571014,2.0885,239.18,239.02,26.03383935]
[1732113571214,5.6952,239.2,238.98,26.03383935]
[1732113571419,5.6952,239.2,238.99,0.76785926]
[1732113571622,2.0888,239.15,238.99,0.76785926]
[1732113571827,5.6952,239.2,238.99,0.76785926]
[1732113572218,3.94,239.19,239.02,26.03383935]
[1732113572415,1.7552,239.2,239.02,26.03383935]
[1732113572620,3.94,239.19,239.09,2.0894]
[1732113572819,1.7552,239.2,239.02,26.03383935]
[1732113573022,3.94,239.19,239.02,26.03383935]
[1732113574222,26.03383935,239.13,238.84,3.94]
[1732113574429,26.03383935,239.13,238.86,0.1572]
[1732113574624,2.0898,239.05,238.94,2.0907]
[1732113574819,3.94,239.06,238.87,26.03383935]
[1732113575022,3.94,239.06,238.88,0.76813723]
[1732113575217,3.94,239.06,238.87,26.03383935]
[1732113575418,3.94,239.06,238.78,2.11608543]
[1732113575640,3.94,239.06,238.84,26.03383935]
[1732113575641,26.03383935,239.05,238.84,26.03383935]
[1732113575921,1.8704,239.05,238.88,26.03383935]
[1732113576122,1.8704,239.05,238.8,26.03383935]
[1732113576123,3.6138,239.08,238.96,26.03383935]
[1732113576718,3.6138,239.08,238.92,26.03383935]
[1732113576921,26.03383935,239.04,238.84,26.03383935]
[1732113577122,2.0895,239.09,238.97,2.0905]
[1732113577427,26.03383935,239.16,238.94,3.94]
[1732113577621,26.03383935,239.12,238.94,3.94]
[1732113577923,26.03383935,239.12,238.92,26.03383935]
[1732113578125,1.8194,239.11,238.92,26.03383935]
[1732113578722,1.8194,239.11,238.96,26.03383935]
[1732113578925,1.8194,239.11,238.92,26.03383935]
[1732113579327,1.8194,239.11,239.0,2.0902]
[1732113579530,1.8194,239.11,238.92,26.03383935]
[1732113579828,1.8194,239.11,238.92,29.97383935]
[1732113580029,3.6046,239.1,238.92,29.97383935]
[1732113580430,3.94,239.2,239.0,26.03383935]
[1732113580632,1.7525,239.19,239.01,3.94]
[1732113580824,1.7525,239.19,239.08,2.0895]
[1732113581224,1.7525,239.19,239.04,26.03383935]
[1732113581429,3.6715,239.27,239.04,26.03383935]
[1732113581430,3.6715,239.27,239.19,2.0885]
[1732113581730,3.6715,239.27,239.13,3.94]
[1732113581930,2.0875,239.31,239.19,2.0885]
[1732113582123,26.03383935,239.33,239.13,3.94]
[1732113582324,26.03383935,239.33,239.16,26.03383935]
[1732113582525,1.8437,239.34,239.17,3.94]
[1732113582724,3.5132,239.39,239.17,3.94]
[1732113582725,1.76,239.39,239.2,26.03383935]
[1732113583223,26.03383935,239.41,239.24,26.03383935]
[1732113583430,26.03383935,239.41,239.2,26.03383935]
[1732113583828,1.8437,239.46,239.05,0.1602]
[1732113583829,26.03383935,239.37,239.21,4.16]
[1732113584127,26.03383935,239.33,239.16,26.03383935]
[1732113584334,26.03383935,239.33,239.12,26.03383935]
[1732113584534,26.03383935,239.33,239.13,0.76757941]
[1732113584731,2.0874,239.32,239.2,2.0884]
[1732113584934,5.6651,239.32,239.2,2.0884]
[1732113585324,26.03383935,239.29,239.18,2.0886]
[1732113585524,26.03383935,239.25,239.05,0.1602]
[1732113585734,26.03383935,239.25,239.06,4.92772408]
[1732113586034,1.8375,239.3,239.06,4.16]
[1732113586035,26.03383935,239.21,239.06,4.16]
[1732113586227,26.03383935,239.17,239.0,4.16]
[1732113586427,2.089,239.14,239.0,4.16]
[1732113586628,3.5777,239.16,238.92,4.16]
[1732113586926,3.5777,239.16,239.03,2.0899]
[1732113587134,3.5777,239.16,238.94,26.03383935]
[1732113587333,3.5777,239.16,238.95,0.76806635]
[1732113587534,3.5777,239.16,239.04,2.0898]
[1732113588427,5.6666,239.16,239.04,2.0898]
[1732113588631,3.5777,239.16,239.04,2.0898]
[1732113588830,2.089,239.14,239.04,2.0898]
[1732113589132,26.03383935,239.13,239.0,2.0902]
[1732113589329,26.03383935,239.13,238.94,26.03383935]
[1732113589533,26.03383935,239.13,238.95,0.76813873]
[1732113589936,26.03383935,239.13,239.01,2.0901]
[1732113590129,3.5777,239.16,238.94,26.03383935]
[1732113590333,3.5777,239.16,238.95,0.76810896]
[1732113590532,3.5777,239.16,238.95,26.03383935]
[1732113590734,2.0891,239.14,239.05,2.0898]
[1732113591438,3.5777,239.16,238.92,26.03383935]
[1732113591632,3.5777,239.16,238.93,0.76804814]
[1732113591835,2.0891,239.13,239.01,2.0901]
[1732113592036,2.0891,239.13,238.95,26.03383935]
[1732113592037,26.03383935,239.13,238.95,26.03383935]
[1732113592235,26.03383935,239.13,238.96,0.76808426]
[1732113592538,26.03383935,239.05,238.84,26.03383935]
[1732113592739,26.03383935,239.05,238.87,0.76830213]
[1732113592932,26.03383935,239.05,238.88,0.76830213]
[1732113593130,2.09,239.03,238.92,2.0909]
[1732113593332,2.09,239.03,238.84,26.03383935]
[1732113593535,26.03383935,239.05,238.85,0.76836649]
[1732113593735,26.03383935,239.09,238.92,26.03383935]
[1732113593932,26.03383935,239.09,238.93,0.76836649]
[1732113594140,26.03383935,239.09,238.97,2.0905]
[1732113594337,26.03383935,239.09,238.91,4.16]
[1732113594533,26.03383935,239.09,238.92,0.76829274]
[1732113595040,1.7653,239.13,238.92,26.80213209]
[1732113595041,27.79913935,239.13,238.92,26.80213209]
[1732113595337,27.79913935,239.13,238.92,26.03383935]
[1732113595641,2.0894,239.1,238.99,2.0903]
[1732113595936,26.03383935,239.09,238.88,26.03383935]
[1732113596142,2.0898,239.06,238.96,2.0905]
[1732113596340,2.0898,239.06,238.88,26.03383935]
[1732113596542,2.0898,239.06,238.89,0.76830013]
[1732113596736,26.03383935,239.09,238.88,26.03383935]
[1732113596935,26.03383935,239.05,238.89,0.76829982]
[1732113597142,4.16,239.04,238.83,26.03383935]
[1732113597341,2.0901,239.02,238.84,0.76844589]
[1732113597545,4.16,239.04,238.85,0.76844589]
[1732113597745,4.16,239.04,238.87,26.03383935]
[1732113597945,4.16,239.04,238.83,26.03383935]
[1732113598145,26.03383935,239.01,238.84,0.76844226]
[1732113598347,26.03383935,239.01,238.85,0.76844226]
[1732113598348,1.9216,239.0,238.85,0.76844226]
[1732113598549,1.9216,239.0,238.79,26.03383935]
[1732113598748,1.9216,239.0,238.8,0.7685314]
[1732113598947,1.9216,239.0,238.81,0.7685314]
[1732113599142,1.9216,239.0,238.82,0.7685314]
[1732113599343,26.03383935,238.97,238.75,26.03383935]
[1732113599547,26.03383935,238.97,238.76,0.76866526]
[1732113599747,26.03383935,238.97,238.77,0.76866526]
[1732113599944,2.0908,238.94,238.78,0.76866526]
[1732113600252,4.16,238.95,238.79,0.76863945]
[1732113600452,4.16,238.95,238.79,26.03383935]
[1732113600649,4.16,238.95,238.8,0.76863945]
[1732113600865,4.16,238.95,238.79,26.03383935]
[1732113601050,4.16,238.95,238.81,0.76864654]
[1732113601349,4.16,238.95,238.82,0.76862161]
[1732113601549,32.11543935,239.0,238.82,0.76862161]
[1732113601747,6.0816,239.0,238.83,26.03383935]
[1732113601951,1.9216,239.0,238.84,0.76862161]
[1732113602155,1.9216,239.0,238.87,26.03383935]
[1732113602550,1.7653,239.13,238.92,26.03383935]
[1732113602755,1.7653,239.13,238.96,26.03383935]
[1732113602957,1.7653,239.13,238.93,0.4102]
[1732113603151,26.03383935,239.11,238.93,4.16]
[1732113603451,1.7653,239.13,238.93,4.16]
[1732113603751,1.7653,239.13,238.96,26.03383935]
[1732113603954,1.7653,239.13,239.04,2.0898]
[1732113604154,1.7653,239.13,238.96,26.03383935]
[1732113604552,1.7653,239.13,239.04,2.0898]
[1732113604758,1.7653,239.13,238.97,0.76814393]
[1732113604952,1.7653,239.13,238.96,26.03383935]
[1732113605154,1.7653,239.13,239.06,2.0897]
[1732113605358,26.03383935,239.19,239.0,26.03383935]
[1732113605657,3.8606,239.22,239.01,0.76796405]
[1732113605858,26.03383935,239.19,239.01,0.76796405]
[1732113606060,26.03383935,239.15,238.96,26.03383935]
[1732113606262,2.0891,239.13,239.01,2.0901]
[1732113606462,26.03383935,239.15,238.92,26.03383935]
[1732113606663,26.03383935,239.11,238.93,4.92811779]
[1732113606961,3.8606,239.22,238.94,0.76819944]
[1732113607163,30.19383935,239.17,238.97,26.03383935]
[1732113607556,3.8606,239.22,239.01,26.03383935]
[1732113607758,3.8606,239.22,239.05,26.03383935]
[1732113607960,3.8606,239.22,238.99,0.523]
[1732113608164,26.03383935,239.2,238.97,26.03383935]
[1732113608364,26.03383935,239.2,239.04,2.0898]
[1732113608365,2.0889,239.16,239.04,2.0898]
[1732113608564,26.03383935,239.16,238.97,26.03383935]
[1732113608858,26.03383935,239.16,238.96,2.0905]
[1732113609058,26.03383935,239.12,238.96,2.0905]
[1732113609259,1.9475,239.11,238.93,26.03383935]
[1732113609464,1.9475,239.11,238.89,26.03383935]
[1732113609668,26.03383935,239.08,238.87,4.16]
[1732113609861,3.8729,239.07,238.91,26.03383935]
[1732113610160,1.9475,239.11,238.95,26.03383935]
[1732113610360,3.8729,239.14,239.0,26.03383935]
[1732113610567,1.9475,239.27,239.08,26.03383935]
[1732113610765,5.8204,239.27,239.12,26.03383935]
[1732113611060,5.8204,239.27,239.16,2.0888]
[1732113611266,5.8204,239.27,239.12,30.19383935]
[1732113611458,5.8204,239.27,239.05,4.16]
[1732113611662,5.8204,239.27,239.2,2.0884]
[1732113611968,1.54573,239.28,239.14,26.03383935]
[1732113612468,1.54573,239.28,239.1,26.03383935]
[1732113612666,1.54573,239.28,239.14,26.03383935]
[1732113612867,1.54573,239.28,239.22,2.0883]
[1732113613068,1.54573,239.28,239.14,26.03383935]
[1732113613266,1.54573,239.28,239.23,2.0882]
[1732113613462,1.54573,239.28,239.18,26.03383935]
[1732113614063,1.54573,239.28,239.26,2.0879]
[1732113614474,1.54573,239.28,239.18,26.03383935]
[1732113615067,1.54573,239.28,239.14,26.03383935]
[1732113615777,1.54573,239.28,239.1,26.03383935]
[1732113616385,2.0881,239.24,239.13,2.089]
[1732113616679,1.54573,239.28,239.08,26.03383935]
[1732113616880,1.54573,239.28,239.12,26.03383935]
[1732113617179,1.54573,239.28,239.16,26.03383935]
[1732113617386,1.54573,239.28,239.18,2.0886]
[1732113617779,1.54573,239.28,239.16,26.03383935]
[1732113617983,2.088,239.26,239.16,2.0888]
[1732113618180,4.22,239.27,239.12,26.03383935]
[1732113618386,4.22,239.27,239.08,26.03383935]
[1732113619283,26.03383935,239.26,239.04,26.03383935]
[1732113619683,1.8888,239.25,239.04,26.03383935]
[1732113619882,1.8888,239.25,239.08,2.0895]
[1732113620075,3.7705,239.24,239.04,26.03383935]
[1732113620276,2.0888,239.17,239.05,2.0898]
[1732113620485,4.22,239.16,239.05,2.0898]
[1732113620682,4.22,239.16,239.0,26.03383935]
[1732113620887,2.0894,239.1,239.02,2.09]
[1732113621082,4.22,239.16,238.96,26.03383935]
[1732113621278,4.22,239.16,238.92,26.03383935]
[1732113621279,26.03383935,239.14,238.92,26.03383935]
[1732113621484,26.03383935,239.1,238.88,26.03383935]
[1732113621678,5.6695,239.09,238.88,26.03383935]
[1732113621883,2.09,239.03,238.9,2.0911]
[1732113622177,4.22,239.03,238.88,26.03383935]
[1732113622383,2.0903,239.0,238.92,2.0909]
[1732113622578,4.22,239.03,238.84,26.03383935]
[1732113622985,2.0906,238.96,238.84,26.03383935]
[1732113623287,4.22,239.03,238.88,26.03383935]
[1732113624583,4.22,239.03,238.83,26.03383935]
[1732113624787,4.22,239.03,238.79,26.03383935]
[1732113624788,26.03383935,239.02,238.79,26.03383935]
[1732113624985,26.03383935,238.98,238.75,26.03383935]
[1732113626084,2.0911,238.9,238.75,26.03383935]
[1732113626478,4.22,238.93,238.75,26.03383935]
[1732113626677,2.0911,238.91,238.81,2.0919]
[1732113626887,1.9478,238.92,238.75,26.03383935]
[1732113627188,1.9478,238.92,238.73,4.22]
[1732113627189,3.8539,238.92,238.71,2.0928]
[1732113627378,26.03383935,238.9,238.71,26.03383935]
[1732113627584,5.7278,238.92,238.75,26.03383935]
[1732113627879,5.7278,238.92,238.82,2.0918]
[1732113628079,5.7278,238.92,238.75,26.03383935]
[1732113628294,5.7278,238.92,238.58,22.4559959]
[1732113628295,26.03383935,238.8,238.58,22.4559959]
[1732113628486,26.03383935,238.76,238.59,0.76893048]
[1732113628781,6.1261,238.75,238.6,26.03383935]
[1732113628982,4.22,238.74,238.56,26.03383935]
[1732113629181,4.22,238.74,238.52,1.76290214]
[1732113629386,26.03383935,238.69,238.53,0.76924884]
[1732113629581,26.03383935,238.65,238.53,0.76924884]
[1732113629782,4.22,238.64,238.52,1.76290214]
[1732113629982,1.8762,238.73,238.52,1.76290214]
[1732113630185,30.25383935,238.72,238.52,1.76290214]
[1732113630381,30.25383935,238.72,238.54,26.03383935]
[1732113630586,1.8762,238.73,238.54,26.03383935]
[1732113630783,26.03383935,238.68,238.52,1.76290214]
[1732113630978,2.0932,238.67,238.53,2.0943]
[1732113631182,26.03383935,238.68,238.52,1.76290214]
[1732113631183,4.22,238.66,238.52,1.76290214]
[1732113631379,26.03383935,238.64,238.52,1.76290214]
[1732113631589,2.0935,238.63,238.52,1.76290214]
[1732113631785,26.03383935,238.64,238.52,1.76290214]
[1732113632089,28.12763935,238.6,238.52,1.76290214]
[1732113632280,26.03383935,238.56,238.52,1.76290214]
[1732113632479,4.22,238.55,238.35,26.03383935]
[1732113632685,4.22,238.55,238.46,2.0949]
[1732113632885,4.22,238.59,238.39,26.03383935]
[1732113633084,26.03383935,238.6,238.4,0.76966431]
[1732113633085,2.094,238.58,238.4,0.76966431]
[1732113633281,26.03383935,238.56,238.4,0.76966431]
[1732113633486,26.03383935,238.56,238.41,0.76966431]
[1732113633787,26.03383935,238.56,238.36,26.03383935]
[1732113633982,26.03383935,238.56,238.37,0.76975396]
[1732113634586,26.03383935,238.46,238.37,0.76975396]
[1732113634788,26.03383935,238.46,238.25,26.03383935]
[1732113634985,4.1753,238.55,238.37,2.0957]
[1732113634986,26.03383935,238.5,238.37,2.0957]
[1732113635189,26.03383935,238.5,238.24,4.24]
[1732113635391,30.27383935,238.5,238.25,0.77016325]
[1732113635690,26.03383935,238.54,238.34,26.03383935]
[1732113636489,30.14,238.87,238.43,26.03383935]
[1732113636691,26.03383935,238.65,238.5,2.0946]
[1732113636890,26.03383935,238.61,238.44,26.03383935]
[1732113637100,4.24,238.64,238.44,26.03383935]
[1732113637296,4.24,238.64,238.53,2.0943]
[1732113637596,4.24,238.64,238.48,26.03383935]
[1732113637597,2.0401,238.67,238.48,26.03383935]
[1732113637801,2.0937,238.61,238.44,26.03383935]
[1732113638090,2.0401,238.67,238.35,2.0338]
[1732113638091,26.03383935,238.56,238.35,2.0338]
[1732113638292,4.24,238.55,238.38,26.03383935]
[1732113638494,4.24,238.55,238.35,2.0338]
[1732113638692,4.24,238.55,238.36,0.77001129]
[1732113638992,4.24,238.55,238.35,2.0338]
[1732113639195,4.24,238.55,238.34,26.03383935]
[1732113639397,2.0943,238.54,238.41,2.0954]
[1732113639595,4.24,238.55,238.34,26.03383935]
[1732113639796,4.24,238.55,238.35,0.77005612]
[1732113639991,4.24,238.55,238.46,2.0949]
[1732113640295,4.24,238.55,238.34,26.03383935]
[1732113640500,26.03383935,238.52,238.34,26.03383935]
[1732113640701,4.24,238.55,238.34,26.03383935]
[1732113640892,26.03383935,238.52,238.34,26.03383935]
[1732113641203,26.03383935,238.52,238.29,6.2996]
[1732113641204,26.03383935,238.52,238.3,26.03383935]
[1732113641513,2.0335,238.51,238.34,26.03383935]
[1732113641696,4.24,238.5,238.34,26.03383935]
[1732113642399,4.24,238.5,238.41,2.0954]
[1732113642802,4.24,238.5,238.42,2.0953]
[1732113643407,4.24,238.5,238.34,26.03383935]
[1732113643408,4.24,238.5,238.38,26.03383935]
[1732113643703,4.4,238.56,238.45,2.095]
[1732113643899,6.494,238.57,238.38,26.03383935]
[1732113644103,4.4,238.57,238.47,2.0948]
[1732113644304,26.03383935,238.56,238.29,2.0596]
[1732113644604,26.03383935,238.56,238.43,2.0952]
[1732113644798,2.0946,238.51,238.36,26.03383935]
[1732113644997,26.03383935,238.56,238.23,2.0969]
[1732113644998,26.03383935,238.47,238.23,2.0969]
[1732113645204,6.388,238.46,238.26,26.03383935]
[1732113645506,6.388,238.46,238.27,0.77020438]
[1732113646105,26.03383935,238.43,238.29,2.0964]
[1732113646299,2.0955,238.4,238.2,26.03383935]
[1732113646504,3.8895,238.42,238.24,26.03383935]
[1732113646707,3.8895,238.42,238.28,26.03383935]
[1732113647709,3.8895,238.42,238.32,26.03383935]
[1732113647905,3.8895,238.42,238.15,2.7529]
[1732113647906,5.9848,238.42,238.27,26.03383935]
[1732113648103,5.9848,238.42,238.28,0.7703242]
[1732113648104,3.8895,238.42,238.28,0.7703242]
[1732113648305,3.8895,238.42,238.27,26.03383935]
[1732113648510,1.9431,238.42,238.27,26.03383935]
[1732113648711,4.4,238.43,238.28,0.77032279]
[1732113648908,4.4,238.43,238.37,2.0957]
[1732113649111,4.4,238.43,238.27,26.03383935]
[1732113649306,26.03383935,238.52,238.31,26.03383935]
[1732113649619,4.4,238.51,238.28,26.03383935]
[1732113649808,4.4,238.51,238.32,26.03383935]
[1732113650112,26.03383935,238.44,238.24,26.03383935]
[1732113650307,26.03383935,238.44,238.25,0.77026134]
[1732113650710,26.03383935,238.44,238.26,0.77026134]
[1732113650909,26.03383935,238.44,238.27,0.77026134]
[1732113651111,26.03383935,238.44,238.24,26.03383935]
[1732113651512,26.03383935,238.44,238.31,2.0962]
[1732113651513,2.0955,238.4,238.31,2.0962]
[1732113651716,2.0005,238.39,238.22,26.03383935]
[1732113651915,2.0005,238.39,238.23,0.77035599]
[1732113652110,2.0005,238.39,238.31,2.0963]
[1732113652310,2.0005,238.39,238.22,26.03383935]
[1732113652509,2.0005,238.39,238.23,0.77034725]
[1732113652723,2.0005,238.39,238.24,0.77034093]
[1732113652909,4.4,238.41,238.26,26.03383935]
[1732113653112,4.4,238.51,238.3,26.03383935]
[1732113653316,4.4,238.51,238.31,2.823962]
[1732113653509,4.4,238.51,238.34,26.03383935]
[1732113653915,26.03383935,238.49,238.26,31.22763935]
[1732113654116,26.03383935,238.49,238.3,26.03383935]
[1732113654314,4.4,238.51,238.34,26.03383935]
[1732113654715,2.095,238.46,238.37,2.0957]
[1732113654917,4.4,238.51,238.3,26.03383935]
[1732113655111,4.4,238.51,238.31,0.77019854]
[1732113655511,2.0005,238.53,238.34,26.03383935]
[1732113655712,2.52652,238.54,238.38,26.03383935]
[1732113655916,2.52652,238.54,238.42,26.03383935]
[1732113656115,2.52652,238.54,238.43,0.76988504]
[1732113656316,2.52652,238.54,238.52,2.0943]
[1732113656715,2.52652,238.54,238.43,1.9416]
[1732113657220,2.52652,238.54,238.44,0.76980492]
[1732113657823,2.52652,238.54,238.46,26.03383935]
[1732113658026,2.52652,238.54,238.52,2.0943]
[1732113658323,2.52652,238.54,238.46,26.03383935]
[1732113659222,2.52652,238.54,238.5,26.03383935]
[1732113659724,2.52652,238.54,238.52,2.0944]
[1732113659921,2.52652,238.54,238.46,26.03383935]
[1732113660217,2.0009,238.67,238.52,26.03383935]
[1732113660524,4.0876,238.79,238.56,26.03383935]
[1732113660525,4.4,238.75,238.56,26.03383935]
[1732113660724,2.0927,238.72,238.56,26.03383935]
[1732113661120,4.4,238.75,238.56,26.03383935]
[1732113661518,4.4,238.75,238.52,26.03383935]
[1732113661519,26.03383935,238.72,238.52,26.03383935]
[1732113662018,26.03383935,238.72,238.48,4.4]
[1732113662218,2.093,238.69,238.58,2.0939]
[1732113662415,4.4,238.75,238.55,26.03383935]
[1732113662618,4.4,238.75,238.59,26.03383935]
[1732113663019,2.0927,238.72,238.59,26.03383935]
[1732113663216,4.4,238.75,238.59,26.03383935]
[1732113663426,2.0519,238.78,238.63,26.03383935]
[1732113663627,26.03383935,238.76,238.55,26.03383935]
[1732113664426,2.0519,238.78,238.56,4.4]
[1732113664618,2.0519,238.78,238.45,5.73755039]
[1732113664619,26.03383935,238.73,238.51,26.03383935]